Cogmind - Beta 11.1 @@@ ROGUE MODE // 2022.07.13 @ 02:30:35 Player: Pogmind Result: Core destroyed Performance ------------- Evolutions (8) 4000 Regions Visited (27) 5400 Robots Destroyed (452) 2260 Value Destroyed (26057) 26057 Prototype IDs (55) 1100 Alien Tech Used (3) 600 Bonus (11316) 11316 TOTAL SCORE: 50733 Bonus ------- High Alert Combat Kills 2795 Follower Combat Kills 3311 Entered Garrisons 1200 Used RIF Installer 3000 Network Hubs Disabled 400 Aligned with FarCom 300 A7 Reached Mainframe 300 Met R17 at Cetus 500 Found Hidden Lab 3000 Friendly Fire -3490 Cogmind --------- Core Integrity 0/1450 Matter 300/300 Energy 100/100 System Corruption 21% Temperature Cool (0) Movement Core (700) Ox13 Location -2/Research Parts ------- > --- POWER (2) -------- (None) > --- PROPULSION (6) --- (None) > --- UTILITY (11) ----- High-capacity Storage Unit Quantum Router > --- WEAPON (4) ------- (None) > --- INVENTORY (20) --- Advanced Heat Sink Long-range Sensor Array Long-range Terrain Scanner Advanced Weapon Cycler Beam Splitter Authchip [Propulsion] Long-range Tractor Beam Improved Field Recycling Unit (42) Advanced Remote Datajack Guided Remote Datajack Peak State ------------ > --- POWER ------------ Micro Antimatter Reactor Light Quantum Reactor > --- PROPULSION ------- Improved Antigrav System Combat Linear Gravjet Combat Linear Gravjet Combat Linear Gravjet Combat Linear Gravjet Combat Linear Gravjet > --- UTILITY ---------- Advanced Heat Sink Advanced Heat Sink Advanced Heat Sink High-capacity Storage Unit Advanced Visual Processing Unit Experimental Signal Interpreter Advanced Transmission Jammer Medium Regenerative Plating Experimental Hacking Suite Experimental Hacking Suite Quantum Router > --- WEAPON ----------- Enhanced Quantum Rifle Enhanced Quantum Rifle Enhanced Quantum Rifle Enhanced Quantum Rifle > --- INVENTORY -------- Precision Energy Filter Advanced Weapon Cycler Heavy Regenerative Plating Beam Splitter Beam Splitter Authchip [Propulsion] Relay Coupler [Behemoth] Long-range Tractor Beam Improved Field Recycling Unit Hypervelocity EM Gauss Rifle Hypervelocity EM Gauss Rifle Enhanced Quantum Rifle Enhanced Quantum Rifle Enhanced Quantum Rifle Long-range Missile Launcher Advanced Remote Datajack Guided Remote Datajack Power Maul Enhanced Force Lance [Rating: 186] Favorites ----------- Power Reinforced Antimatter Reactor Engine Reinforced Deuterium Engine Power Core Improved Fusion Compressor Reactor Reinforced Antimatter Reactor Propulsion Light Treads Treads Light Treads Leg Myomer Leg Wheel Armored Huge Wheel Hover Unit Combat Linear Gravjet Flight Unit VTOL Module Utility Huge Storage Unit Device Improved Cooling System Storage Huge Storage Unit Processor Advanced Visual Processing Unit Hackware Improved Hacking Suite Protection Improved Medium Armor Plating Weapon Enhanced Gauss Cannon Energy Gun Heavy Particle Gun Energy Cannon Beam Cannon Ballistic Gun Advanced KE Penetrator Ballistic Cannon Enhanced Gauss Cannon Launcher Long-range Missile Launcher Special Weapon Remote Datajack Impact Weapon Heavy Flail Piercing Weapon Enhanced Force Lance Build | -11 -10 -10 -10 -9 -8 -8 -8 -8 -7 -7 -7 -7 -7 -7 -6 -6 -6 -6 -6 -5 -5 -4 -4 -3 -3 -3 -2 ------- Run | Scr Mat Min Exi Min Mat Gar Mat Gar Fac Was Fac Gar Fac Gar Fac Ext Cet Arc Hub Fac Gar Fac Gar Res Arm Lab Res Slots Evolved 16 | . . . . . 4 . . . 2 . . . . . 2 . . . . 2 . 2 . 2 . . 2 Power 1 | . . . . . . . . . . . . . . . . . . . . . . 1 . . . . . Propulsion 4 | . . . . . . . . . . . . . . . . . . . . 2 . . . 2 . . . Utility 9 | . . . . . 4 . . . . . . . . . 2 . . . . . . 1 . . . . 2 Weapon 2 | . . . . . . . . . 2 . . . . . . . . . . . . . . . . . . Parts Attached 922 | 7 3 2 . 4 38 48 43 37 2 7 18 58 16 37 30 38 29 16 19 11 43 83 41 77 158 12 45 Power 29 | 1 . 1 . . 1 2 1 . . . . 1 . 1 . 1 2 . . . . 4 . 2 9 . 3 Engine 7 | 1 . 1 . . 1 1 1 . . . . 1 . . . 1 . . . . . . . . . . . Core 3 | . . . . . . 1 . . . . . . . . . . . . . . . 1 . . . . 1 Reactor 19 | . . . . . . . . . . . . . . 1 . . 2 . . . . 3 . 2 9 . 2 Propulsion 94 | 2 . 1 . . 5 7 9 5 . . 2 1 . . 3 3 . 2 2 2 4 5 4 11 17 . 9 Treads 38 | 2 . 1 . . 4 5 2 2 . . . . . . . . . 1 . . 1 3 3 8 6 . . Leg 8 | . . . . . . . . . . . . . . . . 1 . . . . . . . 1 . . 6 Wheel 30 | . . . . . 1 2 6 3 . . 2 1 . . 2 2 . 1 1 2 2 2 1 2 . . . Hover 14 | . . . . . . . 1 . . . . . . . . . . . . . . . . . 10 . 3 Flight 4 | . . . . . . . . . . . . . . . 1 . . . 1 . 1 . . . 1 . . Utility 436 | 2 2 . . 2 17 24 14 15 . 2 8 29 6 16 10 20 17 8 12 9 21 48 19 37 76 9 13 Device 235 | 1 . . . 1 7 5 2 4 . 1 1 11 3 8 2 8 9 4 7 8 6 33 8 27 64 6 9 Storage 17 | 1 2 . . 1 1 2 . 2 . . . 2 . 2 . 1 . . . . . . 1 . 2 . . Processor 11 | . . . . . 1 . . 1 . . . 1 . . 1 2 1 1 . . . 1 . 1 . . 1 Hackware 71 | . . . . . . 4 4 2 . 1 3 9 3 5 3 1 . 1 3 . 7 8 5 6 4 . 2 Protection 102 | . . . . . 8 13 8 6 . . 4 6 . 1 4 8 7 2 2 1 8 6 5 3 6 3 1 Artifact . | . . . . . . . . . . . . . . . . . . . . . . . . . . . . Weapon 363 | 2 1 . . 2 15 15 19 17 2 5 8 27 10 20 17 14 10 6 5 . 18 26 18 27 56 3 20 Energy Gun 78 | . . . . . 4 2 1 3 2 2 5 15 5 4 10 4 1 . . . 1 . . . 4 2 13 Energy Cannon 21 | . . . . 2 7 6 . 2 . . . . 1 . . 1 . . . . . . 2 . . . . Ballistic Gun 28 | 2 1 . . . . 2 . . . . . . . . . . 3 3 2 . 1 . . 1 13 . . Ballistic Cannon 99 | . . . . . 1 . 3 4 . . . 4 . 6 . 5 5 1 2 . 8 12 8 14 26 . . Launcher 23 | . . . . . 2 2 1 4 . . 1 . 1 1 2 . . . . . . 1 3 1 3 . 1 Special Weapon 70 | . . . . . . 2 7 1 . 3 2 8 3 5 5 2 . 2 . . 8 9 4 4 3 1 1 Impact Weapon 42 | . . . . . 1 1 7 3 . . . . . 4 . 2 1 . 1 . . 4 1 7 6 . 4 Slashing Weapon . | . . . . . . . . . . . . . . . . . . . . . . . . . . . . Piercing Weapon 2 | . . . . . . . . . . . . . . . . . . . . . . . . . 1 . 1 Special Melee Weapon . | . . . . . . . . . . . . . . . . . . . . . . . . . . . . Unidentified Prototypes 24 | . . . . . 2 . 1 . . . . . . . . . 4 1 2 . . 2 . 3 2 6 1 Corrupted Parts 2 | . . . . . . . . . . . . . . . . . . 1 . . . . . . . . 1 System Corruption 10 | . . . . . . . . . . . . . . . . . . 1 . . . . . . . . 9 Parts Lost 95 | . 1 2 . . 9 8 . . . . . 2 . 2 3 4 . . 2 . 2 6 1 3 15 . 35 Power 13 | . . 1 . . 1 2 . . . . . 1 . 1 . 1 . . . . . 1 . . 2 . 3 Propulsion 18 | . . 1 . . 4 . . . . . . . . . . . . . . . . 1 . 1 1 . 10 Utility 33 | . . . . . 3 6 . . . . . 1 . . 1 3 . . 1 . . 1 . 1 5 . 11 Weapon 31 | . 1 . . . 1 . . . . . . . . 1 2 . . . 1 . 2 3 1 1 7 . 11 Highest Loss Streak 32 | . 1 1 . . 2 4 . . . . . 1 . 1 2 1 . . 2 . 1 2 1 2 4 . 32 To Critical Strikes . | . . . . . . . . . . . . . . . . . . . . . . . . . . . . Average Slot Usage (%) 88 | . 100 99 100 100 94 90 80 98 84 84 83 75 75 69 84 91 93 92 92 87 83 87 86 86 88 91 82 Engine 5 | . 14 13 14 14 9 8 9 9 7 7 7 7 7 . . 5 . . . . . . . . . . . Reactor 3 | . . . . . . . . . . . . . . 5 6 . 5 6 6 5 5 9 10 8 8 9 3 Treads 7 | . 28 28 28 28 14 11 . 9 . . . . . . . . . . . . . 5 8 10 8 . . Wheel 4 | . . . . . 1 3 8 7 7 7 7 7 7 7 6 6 6 6 6 11 10 4 . 3 . . . Device 10 | . 14 14 14 14 18 9 6 5 7 13 9 8 14 6 13 22 20 19 21 11 5 5 3 8 14 12 13 Storage 7 | . 14 14 14 14 9 9 9 9 7 7 7 7 7 7 6 6 6 6 6 5 5 5 5 4 4 4 4 Processor 4 | . . . . . . . . 8 7 7 7 7 . . . . 7 13 8 5 5 7 10 9 9 9 7 Hackware 8 | . . . . . . 6 6 2 . 6 9 2 . 11 7 6 . 4 1 11 17 21 23 18 11 9 12 Protection 12 | . . . . . 22 22 23 26 15 1 2 6 7 5 16 14 18 8 13 9 5 5 4 . . 3 3 Energy Gun 4 | . . . . . 2 . . . 30 25 28 21 29 4 25 10 . . . . . . . . 1 4 10 Energy Cannon 3 | . . . . 27 14 11 . 1 . . . . . . . . . . . . . . . . . . . Ballistic Gun 2 | . 28 28 28 . . . . . . . . . . . . . 1 3 . 5 7 5 . . 5 . . Ballistic Cannon 7 | . . . . . . . 10 9 . . . 1 . 13 . 14 22 21 25 17 12 11 14 15 10 . . Special Weapon 1 | . . . . . . 1 1 2 . 4 1 1 . . . . . . . . 1 1 2 . . 2 . Impact Weapon 1 | . . . . . . 3 5 3 . . . . . 3 . . 1 . . . . 1 1 1 . 4 2 Naked Turns . | . . . . . . . . . . . . . . . . . . . . . . . . . . . . Heaviest Build 333 | 14 28 28 28 92 241 241 257 257 244 244 238 273 255 333 264 326 163 156 157 152 155 199 197 207 207 94 99 Greatest Support 240 | 40 40 40 40 40 40 40 28 40 28 28 28 28 28 28 28 28 28 28 28 56 56 160 160 230 240 97 150 Greatest Overweight (x) 12 | . . . . 2 8 8 12 11 8 8 8 9 9 11 9 11 5 5 5 2 5 11 11 10 1 . 3 Average Overweight (x) 3 | . . . . 1 3 4 8 8 8 8 8 5 8 5 8 5 5 5 5 2 2 3 1 2 . . . Largest Inventory Capacity 35 | 8 15 15 15 25 35 35 35 35 35 35 35 35 35 35 35 35 25 25 25 25 25 25 25 25 25 20 20 Average Capacity 26 | 6 11 15 15 22 27 26 35 25 35 35 35 28 35 28 35 26 25 25 25 25 25 25 25 25 23 20 20 Most Carried 35 | 4 14 14 15 25 35 35 35 35 34 34 35 35 35 35 35 35 25 25 25 25 25 25 25 25 25 20 20 Average Carried 24 | 2 8 13 13 18 26 23 34 23 33 33 34 27 34 26 34 25 24 24 24 24 22 24 22 24 22 19 18 Final Capacity 35 | 8 15 15 15 25 35 35 35 35 35 35 35 35 35 35 35 25 25 25 25 25 25 25 25 25 20 20 20 Final Carried 35 | 4 14 12 15 25 35 35 35 35 33 34 34 35 32 35 33 25 25 25 25 25 25 25 25 25 20 20 10 Class Distribution -------------------- 19% | Bothacker-Mutant 13% | Scavenger-Mutant 11% | Mutant 10% | Hauler-Mutant 9% | Bothacker-Tank 9% | Botlord-Mutant 5% | Hacker-Mutant 3% | Bothacker-Gunner 3% | Hacker-Tank Dominant Class ---------------- Mutant | -10/Materials Mutant | -10/Mines Mutant | -10/Exiles Mutant | -9/Mines Scavenger-Mutant | -8/Materials Bothacker-Mutant | -8/Garrison Hauler-Mutant | -8/Materials Bothacker-Mutant | -8/Garrison Bothacker-Tank | -7/Factory Bothacker-Mutant | -7/Waste Bothacker-Gunner | -7/Factory Bothacker-Mutant | -7/Garrison Bothacker-Tank | -7/Factory Botlord-Mutant | -7/Garrison Botlord-Tank | -6/Factory Bothacker-Tank | -6/Extension Bothacker-Tank | -6/Cetus Bothacker-Mutant | -6/Archives Tank | -6/Hub_04(d) Scavenger-Tank | -5/Factory Botlord-Mutant | -5/Garrison Hacker-Mutant | -4/Factory Botlord-Mutant | -4/Garrison Botlord-Mutant | -3/Research Hacker-Skirmisher | -3/Armory Scavenger-Mutant | -3/Lab Hacker-Mutant | -2/Research Resources | -11 -10 -10 -10 -9 -8 -8 -8 -8 -7 -7 -7 -7 -7 -7 -6 -6 -6 -6 -6 -5 -5 -4 -4 -3 -3 -3 -2 ----------- Run | Scr Mat Min Exi Min Mat Gar Mat Gar Fac Was Fac Gar Fac Gar Fac Ext Cet Arc Hub Fac Gar Fac Gar Res Arm Lab Res Matter Collected 19875 | 218 281 37 . 40 421 557 736 888 . 110 326 806 331 654 404 959 674 457 817 104 1183 1905 1222 2014 4279 . 452 Remotely 7181 | . . . . . 90 . . . . . . . . . . 313 488 367 522 104 127 1298 302 1472 2098 . . Salvage Created 20612 | 123 497 122 . . 1633 742 741 758 . 286 719 895 652 487 762 1184 367 320 911 93 370 1398 306 2076 4255 . 915 Parts 869 | 4 43 8 . . 75 48 24 31 . 1 30 41 16 18 18 31 22 28 25 7 14 61 12 77 201 . 34 Haulers Intercepted 9 | . 2 . . . 3 . 2 . . . . . . . . . . . 1 . . . . 1 . . . Recyclers Shooed 9 | 1 . 1 . 1 2 . . . . . . . . . 1 . . . . 1 . . . 2 . . . Parts Field Recycled 170 | . . . . . . . . . . . . . . . . . . . . . . 32 5 28 105 . . Retrieved Matter 1934 | . . . . . . . . . . . . . . . . . . . . . . 368 33 294 1239 . . Parts Self-Destructed . | . . . . . . . . . . . . . . . . . . . . . . . . . . . . Prevented . | . . . . . . . . . . . . . . . . . . . . . . . . . . . . Kills | -11 -10 -10 -10 -9 -8 -8 -8 -8 -7 -7 -7 -7 -7 -7 -6 -6 -6 -6 -6 -5 -5 -4 -4 -3 -3 -3 -2 ------- Run | Scr Mat Min Exi Min Mat Gar Mat Gar Fac Was Fac Gar Fac Gar Fac Ext Cet Arc Hub Fac Gar Fac Gar Res Arm Lab Res Combat Hostiles Destroyed 358 | . 10 5 . . 31 23 9 19 . 1 10 19 14 13 16 18 8 . 5 2 9 26 12 29 68 . 11 Melee 7 | . . . . . . . 1 . . . . . . 1 . . . . . . . 1 . . 2 . 2 Guns 99 | . 10 5 . . . 1 . . . . 6 17 6 . 9 11 . . . 1 3 4 . . 21 . 5 Cannons 174 | . . . . . 25 13 7 12 . . . . . . . 6 8 . 5 1 6 20 3 27 41 . . AOE 57 | . . . . . 3 9 1 7 . . 4 . 3 11 5 . . . . . . . 9 2 3 . . Classes Destroyed 20 | 2 5 . . . 3 1 2 1 . 1 . . 2 . . . . . . . . . . . 3 . . Worker 9 | . . . . . . . 2 . . . 2 . . . 1 . . . 1 . . 2 . 1 . . . Builder 9 | . 1 . . . 2 . 1 . . . 2 . . . 1 . . . 2 . . . . . . . . Tunneler 5 | 1 . . . . . . 2 . . . . . . . . . . . . . . 2 . . . . . Hauler 9 | . 2 . . . 3 . 2 . . . . . . . . . . . 1 . . . . 1 . . . Recycler 19 | 1 . 1 . . 1 . 3 . . . 1 . . . . 2 . . 4 . . 2 . 3 . . 1 Operator 13 | . . . . . 1 . . . . . . . . . . . . 9 2 . . 1 . . . . . Watcher 23 | . 3 . . . 5 . 3 . . . 2 . . . 1 . . . 2 . . 1 . 1 4 . 1 Swarmer 76 | . 3 5 . . 8 14 2 6 . . . 8 . 4 3 . . . . . 2 5 9 1 6 . . Saboteur 2 | . . . . . . . . . . . . . . . . . . . . . . . . . 2 . . Grunt 130 | . 7 . . . 14 4 6 10 . 1 9 3 9 6 12 13 1 . . . 3 5 3 10 11 . 3 Brawler 13 | . . . . . . . . 1 . . 1 . 1 . . . . . . . 3 . . . 7 . . Duelist 10 | . . . . . . . . . . . . . 1 1 . 1 . . . . . . . . 7 . . Protector 1 | . . . . . . . . . . . . . . . . . . . . . . . . . 1 . . Sentry 42 | . . . . . 8 4 . 2 . . 1 8 . 1 . 3 . . 3 . 1 1 . 5 4 . 1 Specialist 7 | . . . . . . . 1 . . . . . . . . . . . . . . . . . 6 . . Hunter 20 | . . . . . 1 . 1 . . . . . 1 . . . 1 . . . . 4 . 7 3 . 2 Programmer 54 | . . . . . . . . . . . . . 2 1 1 . 2 . 2 2 . 11 . 8 20 . 5 Heavy 1 | . . . . . . . . . . . . . . . . . . . . . . . . . 1 . . Behemoth 2 | . . . . . . 1 . . . . . . . . . 1 . . . . . . . . . . . Compactor 1 | . . . . . . . . . . 1 . . . . . . . . . . . . . . . . . Cetus Guard 4 | . . . . . . . . . . . . . . . . . 4 . . . . . . . . . . Savage 1 | . . . . . . . . . . . . . . . . 1 . . . . . . . . . . . Best Kill Streak 11 | 2 3 3 . . 5 9 5 5 . 1 4 3 4 11 7 3 2 5 5 2 2 5 4 5 7 . 3 Combat Bots Only 11 | . 3 3 . . 3 9 2 5 . 1 4 3 4 11 7 3 2 . 1 2 2 3 4 5 6 . 3 Max Kills in Single Turn 4 | 1 1 1 . . 2 4 2 2 . 1 4 2 2 3 2 1 1 1 4 1 2 3 4 2 2 . 2 Gunslinging 1 | . . . . . . . . . . . . 1 . . 1 . . . . . . . . . 1 . 1 Exploded 4 | . . . . . 2 4 1 2 . . 4 . 2 3 2 . . . . . . . 4 1 1 . . Melee 1 | . . . . . . . 1 . . . . . . 1 . . . . . . . 1 . . 1 . 1 Uniques/NPCs Destroyed 1 | . . . . . . . . . . . . . . . . . 1 . . . . . . . . . . A7 (-6/Cetus) Combat | -11 -10 -10 -10 -9 -8 -8 -8 -8 -7 -7 -7 -7 -7 -7 -6 -6 -6 -6 -6 -5 -5 -4 -4 -3 -3 -3 -2 -------- Run | Scr Mat Min Exi Min Mat Gar Mat Gar Fac Was Fac Gar Fac Gar Fac Ext Cet Arc Hub Fac Gar Fac Gar Res Arm Lab Res Damage Taken 31467 | . 398 115 . . 1418 2397 360 671 . 13 366 1068 363 966 1458 753 73 . 809 216 817 3643 904 1479 6921 . 6259 Core 3661 | . 80 . . . 205 160 59 60 . . . 65 27 159 143 93 14 . 85 . 12 386 110 100 445 . 1458 Absorbed by Shields 2967 | . . . . . . . . . . . . 184 15 469 . 31 36 . . . 226 454 316 542 694 . . Reduced by Siege Mode 932 | . . . . . . . . . . . . . . . . . . . . . . 81 33 124 694 . . Redirected to Shielding 19 | . . . . . . . . . . . . . . . . . . . . . 19 . . . . . . Regen/Repaired (Parts) 2879 | . . . . . . . . . . . . . . . . . 4 76 101 263 145 514 155 787 642 123 69 Core Remaining (%) 66 | 100 . . . 68 . . . 12 . . . . . 64 . . . . 60 . 98 . 56 . . 74 . Volleys Fired 1301 | 3 60 12 . 1 116 89 43 89 . 19 25 69 34 42 45 44 46 49 25 6 56 72 50 81 191 . 34 Largest 4 | 2 2 2 . 2 2 2 2 2 . 4 4 4 4 1 4 4 4 1 4 4 4 4 4 4 4 . 4 Hottest 312 | 40 40 40 . 120 120 150 96 138 . 220 220 220 300 75 306 312 228 35 228 206 206 222 258 264 264 . 260 Shots Fired 2881 | 6 120 24 . 2 227 130 44 110 . 51 55 178 99 47 120 165 88 49 91 18 109 207 62 208 583 . 88 Gun 1229 | 6 120 24 . . . 6 . 6 . 43 44 146 86 17 103 109 21 46 . 4 20 50 . . 294 . 84 Cannon 1365 | . . . . 2 222 109 26 82 . . . . . 5 . 53 67 . 91 14 59 139 34 192 270 . . Launcher 65 | . . . . . 5 6 2 9 . . 1 . 2 7 6 . . . . . . . 7 7 10 . 3 Special 222 | . . . . . . 9 16 13 . 8 10 32 11 18 11 3 . 3 . . 30 18 21 9 9 . 1 Kinetic 1510 | 6 120 24 . . 3 6 26 53 . . . . . 5 . 53 75 46 91 18 79 189 28 192 496 . . Thermal 1074 | . . . . 2 219 109 . 35 . 43 44 146 86 17 103 109 13 . . . . . 6 . 68 . 74 Explosive 65 | . . . . . 5 6 2 9 . . 1 . 2 7 6 . . . . . . . 7 7 10 . 3 Electromagnetic 10 | . . . . . . . . . . . . . . . . . . . . . . . . . . . 10 Robot Hit Streak 29 | 4 19 9 . . 17 19 26 23 . 29 10 21 6 10 10 14 13 11 10 8 16 15 10 26 19 . 20 Robot Miss Streak 6 | . 3 2 . 2 6 4 3 4 . 2 1 2 3 3 3 3 6 4 2 3 3 3 3 4 5 . 4 Penetration Max 2 | . . . . . . . . 1 . . . . . . . 1 1 1 . 1 . 1 . 1 2 . 1 Secondary Targets 24 | . . 1 . . . . . . . . . 6 1 . 5 2 . . . . . . . . 7 . 2 Max Gunslinging Chain 1 | . . 1 . . . . . . . . . 1 1 . 1 1 . . . . . . . . 1 . 1 Shots Hit Robots 1858 | 4 86 18 . . 149 95 44 63 . 46 37 119 56 43 77 103 47 34 44 6 64 138 35 122 354 . 74 Core Hits 811 | 3 35 12 . . 72 36 20 38 . 4 29 36 25 27 36 43 22 16 17 4 15 53 16 59 164 . 29 Critical Kills 84 | . . . . . . . . . . . . . . . . . . 4 . . 2 7 3 20 48 . . Critical Parts Destroyed 166 | . . . . . . . 4 . . . . . . 1 . . 2 2 1 . 1 20 5 36 89 . 5 Critical Strikes 337 | . . . . . . . 6 1 . 2 . 9 7 5 6 14 9 6 10 1 9 31 8 64 144 . 5 Burn 34 | . . . . . . . . . . 2 . 9 7 4 6 6 . . . . . . . . . . . Destroy 243 | . . . . . . . . . . . . . . . . . 2 6 . . 3 22 8 61 141 . . Blast 40 | . . . . . . . 2 1 . . . . . . . 8 7 . 9 1 6 4 . 1 1 . . Smash 20 | . . . . . . . 4 . . . . . . 1 . . . . 1 . . 5 . 2 2 . 5 Melee Attacks 180 | . . . . . 1 3 12 31 . . . . . 20 . 5 14 . 3 . . 22 2 17 12 3 35 Impact 178 | . . . . . 1 3 12 31 . . . . . 20 . 5 14 . 3 . . 22 2 17 10 3 35 Slashing . | . . . . . . . . . . . . . . . . . . . . . . . . . . . . Piercing 2 | . . . . . . . . . . . . . . . . . . . . . . . . . 2 . . Sneak Attacks 15 | . . . . . . . 6 . . . . . . 1 . . . . 3 . . 3 . 2 . . . Combat Hostiles 1 | . . . . . . . . . . . . . . 1 . . . . . . . . . . . . . Follow-up Attacks . | . . . . . . . . . . . . . . . . . . . . . . . . . . . . Damage Inflicted 52408 | 50 875 193 . . 3284 3043 1705 2824 . 798 1376 1754 1576 1977 2476 2727 2123 867 2296 395 1493 4401 1558 3943 7433 . 3241 Guns 16141 | 50 858 159 . . . 106 . 113 . 798 597 1754 1147 337 1483 1599 377 867 . 167 347 1188 . . 2468 . 1726 Cannons 22386 | . . . . . 2797 2102 529 1360 . . . . . . . 1128 1746 . 1445 228 1146 2589 396 2928 3992 . . Explosions 10424 | . . . . . 470 835 389 1351 . . 779 . 429 1146 993 . . . 512 . . 86 1162 710 807 . 755 Melee 3217 | . . . . . . . 787 . . . . . . 494 . . . . 336 . . 435 . 251 155 . 759 Ramming 240 | . 17 34 . . 17 . . . . . . . . . . . . . 3 . . 103 . 54 11 . 1 Kinetic 21678 | 50 858 159 . . 74 106 529 755 . . . . . . . 1128 1656 867 1445 395 1493 3777 194 2928 5264 . . Thermal 17170 | . . . . . 2723 2102 . 718 . 798 597 1754 1147 337 1483 1599 467 . . . . 86 202 . 1196 . 1961 Explosive 9425 | . . . . . 470 835 389 1351 . . 672 . 429 1146 958 . . . . . . . 1162 710 807 . 496 Electromagnetic 678 | . . . . . . . . . . . 107 . . . 35 . . . 512 . . . . . . . 24 Impact 3217 | . . . . . . . 787 . . . . . . 494 . . . . 336 . . 435 . 251 155 . 759 Slashing . | . . . . . . . . . . . . . . . . . . . . . . . . . . . . Piercing . | . . . . . . . . . . . . . . . . . . . . . . . . . . . . Highest Corruption 24 | . . . . . . . . . . 11 11 6 8 10 1 2 3 3 6 2 . 2 . 3 24 24 21 Average Corruption 6 | . . . . . . . . . . 8 10 6 6 9 1 1 2 2 4 1 . 1 . 1 10 24 7 Corruption Purged 28 | . . . . . . . . . . . 5 . . . . . . 4 . 2 . 6 . 4 7 . . Corruption Blocked . | . . . . . . . . . . . . . . . . . . . . . . . . . . . . Effects 426 | . . . . . . . . . . 6 31 89 33 85 1 27 7 3 . 1 . 14 . 7 93 13 16 Message Errors 107 | . . . . . . . . . . 2 8 25 11 20 . 5 . 1 . . . . . . 25 7 3 Matter Fused 92 | . . . . . . . . . . . 8 21 5 22 . 8 2 1 . . . 1 . 3 15 2 4 Heat Flow Errors 49 | . . . . . . . . . . . 1 13 3 7 . 5 2 1 . . . 6 . . 10 1 . Energy Discharges 46 | . . . . . . . . . . 2 5 8 5 9 . 3 1 . . . . 2 . . 8 . 3 Parts Rejected 5 | . . . . . . . . . . . 1 . . . . . . . . . . . . . 4 . . Data Loss (minor) 57 | . . . . . . . . . . . 3 10 4 18 . 3 1 . . 1 . 1 . 1 11 3 1 Data Loss (major) 27 | . . . . . . . . . . 1 2 6 3 3 1 1 1 . . . . 2 . 1 5 . 1 Misfires 15 | . . . . . . . . . . . 1 3 2 5 . 1 . . . . . 1 . . 1 . 1 Alerts 7 | . . . . . . . . . . . 1 3 . 1 . . . . . . . . . . 1 . 1 Misdirections 4 | . . . . . . . . . . . . . . . . . . . . . . . . . 4 . . Weapon Failures 17 | . . . . . . . . . . 1 1 . . . . 1 . . . . . 1 . 2 9 . 2 Overload Shots . | . . . . . . . . . . . . . . . . . . . . . . . . . . . . Overflow Damage 2659 | . . . . . 57 74 488 74 . . 29 . . 76 34 11 . . 303 4 15 468 104 336 170 . 416 Projectiles 547 | . . . . . 57 17 25 12 . . . . . . . 11 . . 114 4 15 67 . 114 111 . . Explosions 553 | . . . . . . 57 16 62 . . 29 . . 25 34 . . . 34 . . 21 104 31 33 . 107 Melee 1559 | . . . . . . . 447 . . . . . . 51 . . . . 155 . . 380 . 191 26 . 309 Knockbacks 137 | . 1 1 . . 2 . 6 2 . . . . . . . 4 4 . 6 2 4 22 2 19 56 . 6 Impact 14 | . 1 1 . . . . 3 . . . . . . . . . . . . . . . . 1 2 . 6 Kinetic 121 | . . . . . 2 . 3 2 . . . . . . . 4 4 . 6 2 4 22 2 18 52 . . Secondary 2 | . . . . . . . . . . . . . . . . . . . . . . . . . 2 . . Self-Inflicted Damage 948 | . . . . . . 65 . . . . 83 . . 184 . . . . 186 . . . 80 49 46 . 255 Shots 17 | . . . . . . 2 . . . . 1 . . 4 . . . . 2 . . . 1 2 1 . 4 Rammed 34 | . 4 11 . . 5 . . . . . . . . . . . . . 1 . . 5 . 2 1 . 5 Targets Rammed 36 | . 4 12 . . 5 . . . . . . . . . . . . . 1 . . 6 . 2 1 . 5 Kicked . | . . . . . . . . . . . . . . . . . . . . . . . . . . . . Crushed 2 | . . 1 . . . . . . . . . . . . . . . . . . . 1 . . . . . Highest Temperature 606 | . 18 . . 18 282 189 81 344 . 4 156 606 238 268 293 196 153 110 87 84 191 338 375 264 449 221 172 Average Temperature 84 | . 8 . . 12 53 60 38 75 . 4 55 119 103 85 110 105 28 71 46 36 43 75 117 85 103 119 62 Received Heat Transfer 5328 | . 183 . . . 603 666 90 297 . 9 105 228 90 224 555 306 . . 48 18 159 216 87 76 378 . 990 Effects 22 | . . . . . . . . 1 . . . 13 . . . . . . . . . 2 . . 6 . . Shutdowns 3 | . . . . . . . . . . . . 2 . . . . . . . . . . . . 1 . . Energy Bleed 3 | . . . . . . . . 1 . . . 2 . . . . . . . . . . . . . . . Interference 3 | . . . . . . . . . . . . 3 . . . . . . . . . . . . . . . Short Circuit 3 | . . . . . . . . . . . . 1 . . . . . . . . . 1 . . 1 . . Damage (minor) 3 | . . . . . . . . . . . . 2 . . . . . . . . . 1 . . . . . Damage (major) 7 | . . . . . . . . . . . . 3 . . . . . . . . . . . . 4 . . Siege Activations 52 | . . . . . . . . . . . . . . . . . . . . . 1 15 8 11 17 . . Total Turns 854 | . . . . . . . . . . . . . . . . . . . . . 5 252 121 213 263 . . Longest Duration 78 | . . . . . . . . . . . . . . . . . . . . . 5 65 25 78 48 . . Robots Corrupted 1 | . . . . . . . . . . . . . . . . . . . 1 . . . . . . . . Combat Hostiles . | . . . . . . . . . . . . . . . . . . . . . . . . . . . . Parts Fried 34 | . . . . . . . 6 . . . . . . . . . . . 8 . . 7 . 6 4 . 3 Impact Corruptions 42 | . . . . . . . 11 . . . . . . 3 . . . . 6 . . 6 . 4 1 . 11 Robots Melted 17 | . . . . . 3 . . . . 1 . 2 5 1 2 1 . . . . . . . . 1 . 1 Combat Hostiles 16 | . . . . . 3 . . . . 1 . 2 5 . 2 1 . . . . . . . . 1 . 1 Parts Melted 89 | . . . . . 14 3 . . . 7 2 9 9 3 10 13 4 . . . . . . . 6 . 9 Heat Transferred 33224 | . . . . . 5550 2960 . 1172 . 1702 1110 4046 3076 1150 3835 3684 1040 . . . . 50 480 . 1332 . 2037 Parts Sabotaged 6 | . . . . . . . . . . . . . . . . . . . . . . . . . 6 . . Parts Stolen . | . . . . . . . . . . . . . . . . . . . . . . . . . . . . Parts Stripped . | . . . . . . . . . . . . . . . . . . . . . . . . . . . . Power Chain Reactions 1 | . . . . . . . . . . . . . . . . . . . . . . . . . . . 1 Missiles Intercepted . | . . . . . . . . . . . . . . . . . . . . . . . . . . . . Alert | -11 -10 -10 -10 -9 -8 -8 -8 -8 -7 -7 -7 -7 -7 -7 -6 -6 -6 -6 -6 -5 -5 -4 -4 -3 -3 -3 -2 ------- Run | Scr Mat Min Exi Min Mat Gar Mat Gar Fac Was Fac Gar Fac Gar Fac Ext Cet Arc Hub Fac Gar Fac Gar Res Arm Lab Res Peak Influence 1420 | 10 179 84 . . 482 1078 540 867 455 159 200 898 734 934 500 518 579 365 408 258 759 456 955 752 1420 . 466 Initial 537 | . 6 19 . . . 312 525 13 455 159 111 132 471 205 490 245 289 182 57 199 55 341 203 537 394 . . Average 461 | 1 42 30 . . 208 935 71 648 455 159 129 685 555 787 129 335 455 262 84 147 574 218 769 373 556 . 161 Maximum Alert Level 4 | . . . . . 2 3 2 3 2 . 1 3 3 3 2 2 2 1 2 1 3 2 3 3 4 . 2 Low Security (%) 30 | 100 100 100 . 100 55 . 98 6 . 100 93 2 . . 69 1 . 41 93 48 8 33 . 15 13 . 63 Level 1 18 | . . . . . 20 1 . 8 . . 6 19 19 8 19 79 24 58 4 51 9 60 1 49 24 . 32 Level 2 20 | . . . . . 24 5 . 31 100 . . 25 51 17 11 18 75 . 2 . 63 5 26 25 31 . 4 Level 3 30 | . . . . . . 93 . 53 . . . 52 29 73 . . . . . . 18 . 71 8 21 . . Level 4 . | . . . . . . . . . . . . . . . . . . . . . . . . . 8 . . Level 5 . | . . . . . . . . . . . . . . . . . . . . . . . . . . . . High Security . | . . . . . . . . . . . . . . . . . . . . . . . . . . . . Max Security . | . . . . . . . . . . . . . . . . . . . . . . . . . . . . Squads Dispatched 93 | . 3 . . 1 5 . 3 . 2 . 5 . 7 . 9 4 . . 4 3 . 16 . 13 16 . 2 Investigation 28 | . 2 . . 1 3 . . . 1 . . . 1 . 2 3 . . 2 . . 5 . 3 4 . 1 Extermination 24 | . . . . . . . . . . . 1 . 1 . 2 . . . 2 1 . 5 . 4 7 . 1 Reinforcement 22 | . 1 . . . 1 . 3 . 1 . 1 . 1 . 5 1 . . . 1 . 3 . 2 2 . . Assault 4 | . . . . . . . . . . . . . 1 . . . . . . . . . . . 3 . . Garrison 15 | . . . . . 1 . . . . . 3 . 3 . . . . . . 1 . 3 . 4 . . . Intercept . | . . . . . . . . . . . . . . . . . . . . . . . . . . . . Searches Triggered . | . . . . . . . . . . . . . . . . . . . . . . . . . . . . Construction Impeded 1 | . . . . . . . . . . . 1 . . . . . . . . . . . . . . . . Haulers Reinforced 2 | . . . . . . . . . . . . . . . 1 . . . . . . . . 1 . . . Active Scanning Responses . | . . . . . . . . . . . . . . . . . . . . . . . . . . . . Cargo Convoy Interrupts 2 | . . . . . . . . . . . . . . . 1 . . . . . . 1 . . . . . Stealth | -11 -10 -10 -10 -9 -8 -8 -8 -8 -7 -7 -7 -7 -7 -7 -6 -6 -6 -6 -6 -5 -5 -4 -4 -3 -3 -3 -2 --------- Run | Scr Mat Min Exi Min Mat Gar Mat Gar Fac Was Fac Gar Fac Gar Fac Ext Cet Arc Hub Fac Gar Fac Gar Res Arm Lab Res Distress Signals 30 | . 1 . . . 3 . 2 . . . . . . . 5 2 2 . 1 3 . 4 . 2 3 . 2 Communications Jammed 61 | . . . . . . . . . . . . . . . . . . . . . . . . 2 40 . 19 Distress Signals 60 | . . . . . . . . . . . . . . . . . . . . . . . . 1 40 . 19 Times Spotted 740 | . 21 6 . . 42 28 27 25 3 5 17 45 26 32 36 35 17 18 19 9 36 54 29 40 127 . 43 Peak Tracking Total 12 | . 3 3 . . 4 12 3 5 2 3 4 4 5 9 5 5 5 1 4 6 4 8 6 4 9 . 12 Tactical Retreats 56 | . 1 . . . 1 1 1 1 . . . 2 2 2 2 4 . . 1 . 4 2 2 2 24 . 4 Traps | -11 -10 -10 -10 -9 -8 -8 -8 -8 -7 -7 -7 -7 -7 -7 -6 -6 -6 -6 -6 -5 -5 -4 -4 -3 -3 -3 -2 ------- Run | Scr Mat Min Exi Min Mat Gar Mat Gar Fac Was Fac Gar Fac Gar Fac Ext Cet Arc Hub Fac Gar Fac Gar Res Arm Lab Res Traps Triggered 74 | . 2 . . . 1 10 1 9 1 . . 10 1 6 1 5 . . 2 1 11 2 6 1 4 . . Indirectly . | . . . . . . . . . . . . . . . . . . . . . . . . . . . . Trap Hack Attempts . | . . . . . . . . . . . . . . . . . . . . . . . . . . . . Triggered . | . . . . . . . . . . . . . . . . . . . . . . . . . . . . Disarmed . | . . . . . . . . . . . . . . . . . . . . . . . . . . . . Reprogrammed . | . . . . . . . . . . . . . . . . . . . . . . . . . . . . Reused . | . . . . . . . . . . . . . . . . . . . . . . . . . . . . Traps Reconfigurated 15 | . . . . . . 7 8 . . . . . . . . . . . . . . . . . . . . Traps Extracted . | . . . . . . . . . . . . . . . . . . . . . . . . . . . . Installed . | . . . . . . . . . . . . . . . . . . . . . . . . . . . . Triggered 1 | . . . . . . . . . . . . . . . 1 . . . . . . . . . . . . Exploded 1 | . . . 1 . . . . . . . . . . . . . . . . . . . . . . . . Machines | -11 -10 -10 -10 -9 -8 -8 -8 -8 -7 -7 -7 -7 -7 -7 -6 -6 -6 -6 -6 -5 -5 -4 -4 -3 -3 -3 -2 ---------- Run | Scr Mat Min Exi Min Mat Gar Mat Gar Fac Was Fac Gar Fac Gar Fac Ext Cet Arc Hub Fac Gar Fac Gar Res Arm Lab Res Machines Disabled 102 | . . . . . 4 4 1 8 . . 4 5 9 6 6 4 4 4 13 . 6 12 4 1 5 1 1 Max in Single Turn 5 | . . . . . 1 1 1 1 . . 3 1 1 1 4 1 1 1 5 . 1 4 1 1 1 1 1 Garrison Access 4 | . . . . . . . . . . . . . . . . . . . . . . 1 . 1 . . 2 Garrison Relay 26 | . . . . . . 4 . 4 . . . 5 . 4 . . . . . . 5 . 4 . . . . Network Hub 2 | . . . . . . . . . . . . . . . . . . . 2 . . . . . . . . Machines Sabotaged . | . . . . . . . . . . . . . . . . . . . . . . . . . . . . Garrisons Compromised 1 | . . . . . . . . . . . . . . . 1 . . . . . . . . . . . . Overloaded Fab Kills . | . . . . . . . . . . . . . . . . . . . . . . . . . . . . Hacking | -11 -10 -10 -10 -9 -8 -8 -8 -8 -7 -7 -7 -7 -7 -7 -6 -6 -6 -6 -6 -5 -5 -4 -4 -3 -3 -3 -2 --------- Run | Scr Mat Min Exi Min Mat Gar Mat Gar Fac Was Fac Gar Fac Gar Fac Ext Cet Arc Hub Fac Gar Fac Gar Res Arm Lab Res Machines Accessed 119 | . 8 . 2 1 11 . 8 . 3 . 3 . 6 . 5 15 1 . 4 5 . 15 . 11 12 2 7 Terminals 71 | . 7 . . . 8 . 4 . 3 . 2 . 2 . 1 15 1 . 4 2 . 7 . 5 7 . 3 Fabricators 16 | . . . . . . . . . . . . . 3 . 3 . . . . . . 4 . 2 3 . 1 Repair Stations 4 | . . . . . . . . . . . . . . . . . . . . 1 . . . 2 1 . . Recycling Units 9 | . 1 . . . 2 . 2 . . . . . . . 1 . . . . 1 . . . . 1 . 1 Scanalyzers 3 | . . . . . . . 1 . . . . . . . . . . . . . . 2 . . . . . Garrison Access 11 | . . . . . 1 . 1 . . . 1 . 1 . . . . . . 1 . 2 . 2 . . 2 Total Hacks 435 | . 15 . 2 1 42 . 19 . 5 . 4 . 8 . 11 34 1 . 9 39 . 66 . 63 51 20 45 Successful 252 | . 8 . 2 1 20 . 12 . . . 2 . 4 . 6 15 . . 4 21 . 45 . 36 29 20 27 Failed 181 | . 6 . . . 22 . 7 . 5 . 2 . 4 . 5 19 1 . 5 18 . 21 . 26 22 . 18 Catastrophic 27 | . . . . . 3 . . . 1 . 2 . 1 . . 2 1 . 1 . . 3 . 6 3 . 4 Database Lockouts 2 | . 1 . . . . . . . . . . . . . . . . . . . . . . 1 . . . Manual 226 | . 11 . 1 . 30 . 16 . 4 . 3 . 4 . 3 9 1 . 9 17 . 33 . 30 23 . 32 Terminals 284 | . 14 . . . 36 . 8 . 5 . 3 . 2 . 2 34 1 . 9 20 . 39 . 43 34 . 34 Fabricators 45 | . . . . . . . . . . . . . 5 . 7 . . . . . . 14 . 5 9 . 5 Repair Stations 29 | . . . . . . . . . . . . . . . . . . . . 11 . . . 12 6 . . Recycling Units 25 | . 1 . . . 4 . 8 . . . . . . . 2 . . . . 6 . . . . 2 . 2 Scanalyzers 9 | . . . . . . . 2 . . . . . . . . . . . . . . 7 . . . . . Garrison Access 20 | . . . . . 2 . 1 . . . 1 . 1 . . . . . . 2 . 6 . 3 . . 4 Terminal Hacks 108 | . 5 . 2 1 12 . 1 . . . . . . . 1 11 . . . 7 . 11 . 16 11 20 10 Record 22 | . . . 1 . . . . . . . . . . . . . . . . . . 1 . . . 20 . Part Schematic 11 | . . . . . . . . . . . . . . . . . . . . . . 4 . 5 2 . . Robot Analysis 7 | . 2 . . . 4 . . . . . . . . . . 1 . . . . . . . . . . . Prototype ID Bank 2 | . 1 . . . . . . . . . . . . . . . . . . . . . . 1 . . . Open Door 10 | . . . . 1 . . . . . . . . . . 1 8 . . . . . . . . . . . Branch Access Points 3 | . . . . . . . . . . . . . . . . . . . . . . 1 . 1 . . 1 Machine Index 2 | . . . . . . . . . . . . . . . . . . . . . . . . 1 . . 1 Terminal Index 4 | . . . . . . . . . . . . . . . . . . . . 1 . 1 . . 1 . 1 Fabricator Index 2 | . . . . . . . . . . . . . . . . . . . . 1 . . . . . . 1 Repair Station Index 2 | . . . . . . . . . . . . . . . . . . . . . . 1 . . 1 . . Scanalyzer Index 3 | . . . . . . . . . . . . . . . . . . . . 1 . 1 . . . . 1 Garrison Index 1 | . . . . . . . . . . . . . . . . . . . . 1 . . . . . . . Alert Level 2 | . . . . . 2 . . . . . . . . . . . . . . . . . . . . . . Unreport Threat 10 | . . . . . 3 . . . . . . . . . . . . . . 1 . 1 . 1 2 . 2 Locate Traps 8 | . . . . . 2 . . . . . . . . . . 2 . . . 1 . . . 2 1 . . Recall Extermination 3 | . . . . . . . . . . . . . . . . . . . . . . . . 2 1 . . Recall Reinforcements 1 | . . . . . . . . . . . . . . . . . . . . . . 1 . . . . . Recall Assault 1 | . . . . . . . . . . . . . . . . . . . . . . . . . 1 . . Hauler Manifests 7 | . 2 . . . 1 . 1 . . . . . . . . . . . . 1 . . . 1 . . 1 Registered Prototypes 1 | . . . . . . . . . . . . . . . . . . . . . . . . . 1 . . Zone Layout 5 | . . . . . . . . . . . . . . . . . . . . . . . . 2 1 . 2 EX-Prototype ID Bank 1 | . . . 1 . . . . . . . . . . . . . . . . . . . . . . . . Fabricator Hacks 29 | . . . . . . . . . . . . . 1 . 4 . . . . . . 11 . 3 7 . 3 Network Status 5 | . . . . . . . . . . . . . 1 . 1 . . . . . . 1 . . 1 . 1 Load Schematic 13 | . . . . . . . . . . . . . . . 1 . . . . . . 6 . 2 3 . 1 Build 11 | . . . . . . . . . . . . . . . 2 . . . . . . 4 . 1 3 . 1 Repair Station Hacks 17 | . . . . . . . . . . . . . . . . . . . . 4 . . . 7 6 . . Scan Component 10 | . . . . . . . . . . . . . . . . . . . . 3 . . . 4 3 . . Repair 7 | . . . . . . . . . . . . . . . . . . . . 1 . . . 3 3 . . Recycling Unit Hacks 7 | . . . . . . . 2 . . . . . . . . . . . . 2 . . . . 2 . 1 Retrieve Matter 1 | . . . . . . . . . . . . . . . . . . . . . . . . . 1 . . Retrieve Components 6 | . . . . . . . 2 . . . . . . . . . . . . 2 . . . . 1 . 1 Scanalyzer 9 | . . . . . . . 2 . . . . . . . . . . . . . . 7 . . . . . Insert Component 5 | . . . . . . . 1 . . . . . . . . . . . . . . 4 . . . . . Analyze 4 | . . . . . . . 1 . . . . . . . . . . . . . . 3 . . . . . Garrison Access Hacks 14 | . . . . . 1 . 1 . . . 1 . 1 . . . . . . 2 . 4 . 2 . . 2 Unlock Access 6 | . . . . . 1 . 1 . . . 1 . 1 . . . . . . 1 . 1 . . . . . Seal Access 4 | . . . . . . . . . . . . . . . . . . . . . . 1 . 1 . . 2 Coupler Status 4 | . . . . . . . . . . . . . . . . . . . . 1 . 2 . 1 . . . Unauthorized Hacks 68 | . 3 . . . 7 . 6 . . . 1 . 2 . 1 4 . . 4 6 . 12 . 8 3 . 11 Terminals 42 | . 2 . . . 3 . 2 . . . 1 . . . . 4 . . 4 3 . 8 . 5 3 . 7 Track 2 | . . . . . . . . . . . . . . . . . . . . . . 1 . . . . 1 Assimilate 4 | . . . . . . . . . . . . . . . . . . . . . . 3 . . . . 1 Botnet 25 | . 2 . . . 2 . 2 . . . 1 . . . . 4 . . 2 2 . 2 . 4 2 . 2 Detonate 1 | . . . . . . . . . . . . . . . . . . . 1 . . . . . . . . Disrupt 3 | . . . . . . . . . . . . . . . . . . . . . . 1 . . . . 2 Operators 6 | . . . . . 1 . . . . . . . . . . . . . . 1 . 1 . 1 1 . 1 Sabotage 1 | . . . . . . . . . . . . . . . . . . . 1 . . . . . . . . Fabricators 9 | . . . . . . . . . . . . . 2 . 1 . . . . . . 2 . 2 . . 2 Prioritize 2 | . . . . . . . . . . . . . . . . . . . . . . . . 1 . . 1 Liberate 1 | . . . . . . . . . . . . . 1 . . . . . . . . . . . . . . Haulers 3 | . . . . . . . . . . . . . 1 . 1 . . . . . . . . . . . 1 Recompile 3 | . . . . . . . . . . . . . . . . . . . . . . 2 . 1 . . . Repair Stations . | . . . . . . . . . . . . . . . . . . . . . . . . . . . . Recycling Units 12 | . 1 . . . 4 . 4 . . . . . . . . . . . . 3 . . . . . . . Reject 4 | . . . . . 1 . 2 . . . . . . . . . . . . 1 . . . . . . . Recyclers 1 | . . . . . . . . . . . . . . . . . . . . 1 . . . . . . . Mask 4 | . . . . . 1 . 2 . . . . . . . . . . . . 1 . . . . . . . Tunnel 3 | . 1 . . . 2 . . . . . . . . . . . . . . . . . . . . . . Scanalyzers . | . . . . . . . . . . . . . . . . . . . . . . . . . . . . Garrison Access 5 | . . . . . . . . . . . . . . . . . . . . . . 2 . 1 . . 2 Broadcast 2 | . . . . . . . . . . . . . . . . . . . . . . 1 . . . . 1 Watchers 2 | . . . . . . . . . . . . . . . . . . . . . . 1 . . . . 1 Eject 1 | . . . . . . . . . . . . . . . . . . . . . . . . 1 . . . Data Cores Recovered 2 | . . . . . . . . . . . . . . . . . . . 1 . . 1 . . . . . Used . | . . . . . . . . . . . . . . . . . . . . . . . . . . . . Hacking Detections 83 | . 6 . . . 9 . 5 . 3 . 3 . 4 . 3 10 2 . 4 3 . 9 . 6 10 . 6 Full Trace Events 14 | . . . . . 1 . . . 1 . . . . . 1 2 . . 1 . . 2 . 1 4 . 1 Feedback Events 1 | . . . . . . . . . . . . . . . . 1 . . . . . . . . . . . Corruption 1 | . . . . . . . . . . . . . . . . 1 . . . . . . . . . . . Feedback Blocked . | . . . . . . . . . . . . . . . . . . . . . . . . . . . . Robot Schematics Acquired . | . . . . . . . . . . . . . . . . . . . . . . . . . . . . Robots Built . | . . . . . . . . . . . . . . . . . . . . . . . . . . . . Authchips . | . . . . . . . . . . . . . . . . . . . . . . . . . . . . Time . | . . . . . . . . . . . . . . . . . . . . . . . . . . . . Total Robot Build Rating . | . . . . . . . . . . . . . . . . . . . . . . . . . . . . Part Schematics Acquired 14 | . . . . . . . 1 . . . . . . . . . . . . . . 6 . 5 2 . . Parts Built 16 | . . . . . . . . . . . . . . . 4 . . . . . . 4 . 2 4 . 2 Authchips 2 | . . . . . . . . . . . . . . . . . . . . . . 2 . . . . . Time 616 | . . . . . . . . . . . . . . . 148 . . . . . . 254 . 29 151 . 34 Total Part Build Rating 104 | . . . . . . . . . . . . . . . 20 . . . . . . 29 . 14 23 . 18 Parts Repaired 7 | . . . . . . . . . . . . . . . . . . . . 1 . . . 3 3 . . Time 262 | . . . . . . . . . . . . . . . . . . . . 68 . . . 76 118 . . Parts Recycled . | . . . . . . . . . . . . . . . . . . . . . . . . . . . . Recycled Matter . | . . . . . . . . . . . . . . . . . . . . . . . . . . . . Retrieved Matter . | . . . . . . . . . . . . . . . . . . . . . . . . . . . . Retrieved Components 13 | . . . . . . . 9 . . . . . . . . . . . . . . . . . 2 . 2 Parts Scanalyzed 3 | . . . . . . . 1 . . . . . . . . . . . . . . 2 . . . . . Part Schematics Acquired 3 | . . . . . . . 1 . . . . . . . . . . . . . . 2 . . . . . Parts Damaged . | . . . . . . . . . . . . . . . . . . . . . . . . . . . . Bothacking | -11 -10 -10 -10 -9 -8 -8 -8 -8 -7 -7 -7 -7 -7 -7 -6 -6 -6 -6 -6 -5 -5 -4 -4 -3 -3 -3 -2 ------------ Run | Scr Mat Min Exi Min Mat Gar Mat Gar Fac Was Fac Gar Fac Gar Fac Ext Cet Arc Hub Fac Gar Fac Gar Res Arm Lab Res Used RIF Installer 6 | . . . . . . 1 . 1 . . . 1 . 1 . . . . . . 1 . 1 . . . . Command Fork 2 | . . . . . . . . . . . . 1 . 1 . . . . . . . . . . . . . Robot Detection 1 | . . . . . . . . . . . . . . . . . . . . . 1 . . . . . . Patrol Navigation 1 | . . . . . . . . . . . . . . . . . . . . . . . 1 . . . . Structural Interface 1 | . . . . . . . . 1 . . . . . . . . . . . . . . . . . . . Robots Hacked 106 | . . . . . . 5 7 5 . 5 6 16 3 9 5 2 . 1 . . 15 9 9 5 3 . 1 Non-combat 18 | . . . . . . . 1 . . . 2 . 3 . 2 . . . . . . 7 . 1 2 . . Combat 88 | . . . . . . 5 6 5 . 5 4 16 . 9 3 2 . 1 . . 15 2 9 4 1 . 1 Robot Hacks Applied 128 | . . . . . . 5 11 6 . 6 7 16 6 9 7 2 . 1 . . 16 13 9 6 7 . 1 no_distress 1 | . . . . . . . . . . . . . . . . . . . . . . 1 . . . . . find_chute 1 | . . . . . . . . . . . . . . . 1 . . . . . . . . . . . . ignore_repairs 1 | . . . . . . . . . . . . . . . . . . . . . . 1 . . . . . randomize_corridors 1 | . . . . . . . . . . . 1 . . . . . . . . . . . . . . . . map_earth 1 | . . . . . . . . . . . 1 . . . . . . . . . . . . . . . . find_recycling 1 | . . . . . . . . . . . 1 . . . . . . . . . . . . . . . . ignore_parts 1 | . . . . . . . . . . . . . . . . . . . . . . 1 . . . . . purge_threat 19 | . . . . . . . 3 . . . . . 3 . 3 . . . . . . 4 . 2 4 . . locate_traps 1 | . . . . . . . 1 . . . . . . . . . . . . . . . . . . . . reprogram_traps 1 | . . . . . . . . . . . . . 1 . . . . . . . . . . . . . . block_reporting 4 | . . . . . . . . . . . . . . . . . . . . . . 2 . . 2 . . map_route 3 | . . . . . . . . . . . . . 1 . . . . . . . . 2 . . . . . ignore_targets 6 | . . . . . . . . . . 6 . . . . . . . . . . . . . . . . . scatter_targeting 1 | . . . . . . . . . . . . . . . . . . . . . 1 . . . . . . link_complan 1 | . . . . . . . 1 . . . . . . . . . . . . . . . . . . . . broadcast_data 1 | . . . . . . . . 1 . . . . . . . . . . . . . . . . . . . disrupt_area 1 | . . . . . . . . 1 . . . . . . . . . . . . . . . . . . . spike_heat 3 | . . . . . . . 2 1 . . . . . . . . . . . . . . . . . . . wipe_record 1 | . . . . . . . . . . . . . . . . . . . . . 1 . . . . . . disable_weapons 3 | . . . . . . . . . . . . 1 . . . . . . . . . . 1 1 . . . reboot_system 3 | . . . . . . . . . . . 1 1 . 1 . . . . . . . . . . . . . go_dormant 2 | . . . . . . . . . . . . . . . . . . . . . 2 . . . . . . overwrite_iff 4 | . . . . . . . 1 . . . . . . . . . . . . . 1 . 1 . 1 . . streamctrl_high 1 | . . . . . . . . . . . . . . . . 1 . . . . . . . . . . . formatsys_high 66 | . . . . . . 5 3 3 . . 3 14 1 8 3 1 . 1 . . 11 2 7 3 . . 1 Relay Couplers Released 102 | . . . . . . 15 . 15 . . . 18 . 16 . . . . . . 20 . 15 3 . . . Ejected 3 | . . . . . . . . . . . . . . . . . . . . . . . . 3 . . . Machine Destruction 99 | . . . . . . 15 . 15 . . . 18 . 16 . . . . . . 20 . 15 . . . . Attached 60 | . . . . . . 4 4 2 . 1 3 9 3 5 3 1 . 1 . . 7 5 5 4 2 . 1 Fabnet Peak Effective % . | . . . . . . . . . . . . . . . . . . . . . . . . . . . . Robots Rewired 3 | . . . . . . . . . . . . . . . . 3 . . . . . . . . . . . Allies Hacked 3 | . . . . . . . . . . . . . . . 1 . . . . . . 1 . . 1 . . Hacks Repelled . | . . . . . . . . . . . . . . . . . . . . . . . . . . . . Allies | -11 -10 -10 -10 -9 -8 -8 -8 -8 -7 -7 -7 -7 -7 -7 -6 -6 -6 -6 -6 -5 -5 -4 -4 -3 -3 -3 -2 -------- Run | Scr Mat Min Exi Min Mat Gar Mat Gar Fac Was Fac Gar Fac Gar Fac Ext Cet Arc Hub Fac Gar Fac Gar Res Arm Lab Res Total Allies 106 | . . 3 . . . 5 4 3 . . 3 14 3 13 3 19 . 2 . . 13 3 12 3 1 . 2 Largest Group 11 | . . 3 2 . . 5 5 3 1 1 2 5 5 11 11 9 8 2 2 . 7 3 9 7 1 . 1 Highest-Rated Group 414 | . . 76 45 . . 65 65 48 16 16 52 181 181 186 186 414 370 98 98 . 279 161 331 272 137 . 148 Highest-Rated Ally 159 | . . 31 31 . . 15 29 16 16 16 32 85 85 40 32 159 159 49 49 . 85 56 58 137 137 . 148 Total Orders 68 | . . . . . . 4 . 2 . . . 16 . 11 . . . 2 . . 10 2 14 7 . . . STAY 39 | . . . . . . 3 . 1 . . . 9 . 6 . . . 1 . . 6 1 8 4 . . . FOLLOW 29 | . . . . . . 1 . 1 . . . 7 . 5 . . . 1 . . 4 1 6 3 . . . Ally Attacks 717 | . . 1 . . . 1 48 26 3 17 16 49 33 19 77 146 70 11 5 . 63 27 33 45 1 . 26 Total Damage 16354 | . . 20 . . . . 652 275 34 260 513 1159 913 224 1176 3048 1545 322 208 . 1916 790 895 1497 82 . 825 Kills 102 | . . 1 . . . . 8 5 . 1 2 10 8 6 9 13 10 2 2 . 11 1 5 4 . . 4 Allies Corrupted 4 | . . . . . . . . . . . . . . . 1 . . . . . 1 2 . . . . . Allies Melted 1 | . . . . . . . . . . . . . . . 1 . . . . . . . . . . . . Intel | -11 -10 -10 -10 -9 -8 -8 -8 -8 -7 -7 -7 -7 -7 -7 -6 -6 -6 -6 -6 -5 -5 -4 -4 -3 -3 -3 -2 ------- Run | Scr Mat Min Exi Min Mat Gar Mat Gar Fac Was Fac Gar Fac Gar Fac Ext Cet Arc Hub Fac Gar Fac Gar Res Arm Lab Res Robot Analysis Total 7 | . 2 . . . 4 . . . . . . . . . . 1 . . . . . . . . . . . Derelict Logs Recovered 2 | . . 1 . 1 . . . . . . . . . . . . . . . . . . . . . . . Drone Launches . | . . . . . . . . . . . . . . . . . . . . . . . . . . . . Drone Recoveries . | . . . . . . . . . . . . . . . . . . . . . . . . . . . . Exploration | -11 -10 -10 -10 -9 -8 -8 -8 -8 -7 -7 -7 -7 -7 -7 -6 -6 -6 -6 -6 -5 -5 -4 -4 -3 -3 -3 -2 ------------- Run | Scr Mat Min Exi Min Mat Gar Mat Gar Fac Was Fac Gar Fac Gar Fac Ext Cet Arc Hub Fac Gar Fac Gar Res Arm Lab Res Turns Passed 55240 | 82 1484 1003 458 749 6861 5193 2904 4691 108 196 983 3416 1123 2448 1076 2398 517 635 1506 603 2567 2606 5239 2186 3344 276 588 Spaces Moved 23203 | 39 731 591 280 295 1909 1564 1085 1614 49 61 381 1607 413 1164 379 1152 175 274 728 433 1627 1038 1932 780 2111 286 505 Core 4 | 4 . . . . . . . . . . . . . . . . . . . . . . . . . . . Treads 7825 | 35 731 591 280 295 1290 817 1 243 . . . . . . . . . . . . . 224 1931 496 891 . . Legs 26 | . . . . . . . . . . . . . . . . . . . . . . . . . . . 26 Wheels 13363 | . . . . . 619 747 1084 1371 49 61 381 1607 413 1164 379 1152 175 274 728 433 1627 814 1 284 . . . Hover 1985 | . . . . . . . . . . . . . . . . . . . . . . . . . 1220 286 479 Flight . | . . . . . . . . . . . . . . . . . . . . . . . . . . . . Fastest Speed 40 | 50 160 160 160 160 220 160 205 165 220 220 220 145 220 160 220 160 175 175 175 130 130 130 240 150 40 40 40 Average Speed 194 | 148 160 160 160 246 287 283 223 252 220 220 220 180 234 183 228 176 175 175 175 130 131 188 246 187 100 40 49 Slowest Speed 1120 | 160 160 160 160 320 320 400 1120 400 220 220 220 235 235 265 235 265 175 175 175 130 175 310 320 290 237 40 360 Overloaded Moves . | . . . . . . . . . . . . . . . . . . . . . . . . . . . . Propulsion Burnouts . | . . . . . . . . . . . . . . . . . . . . . . . . . . . . Robots Hopped . | . . . . . . . . . . . . . . . . . . . . . . . . . . . . Cave-ins Triggered . | . . . . . . . . . . . . . . . . . . . . . . . . . . . . Teleports 1 | . . . . . . . . . . . . . . . . . . . . . . . . . . 1 . Exploration Rate (%) 62 | 3 98 99 61 57 88 87 59 97 3 64 12 99 14 99 15 90 78 100 70 14 99 23 99 23 68 97 24 Regions Visited 27 Branch Regions 9 Pre-discovered Areas 4 | . 1 . 1 . 2 . . . . . . . . . . . . . . . . . . . . . . Known Exits Taken 11 | . . . . . 1 . 1 . . . 1 . 1 . . . . 1 1 1 . 1 . 1 1 1 . Unknown Exits Taken 8 | 1 1 1 1 1 . . . . . . . . . . 1 1 1 . . . . . . . . . . Scrap Searched 4 | . . 1 . 3 . . . . . . . . . . . . . . . . . . . . . . . Spaces Dug 87 | . . . . . 1 . 1 3 . . . . . 1 . . . . 3 2 . 18 . 19 26 . 13 Terrain Destroyed 1243 | . . . . . 34 16 22 57 . . 31 . 12 83 31 21 17 6 360 8 9 105 71 124 183 . 53 Melee 50 | . . . . . 1 . 1 2 . . . . . 1 . . . . . . . 12 . 14 6 . 13 Projectile 226 | . . . . . . . 12 2 . . . . . . . 21 17 6 48 8 9 50 . 22 29 . 2 AOE 949 | . . . . . 33 16 9 53 . . 31 . 12 82 31 . . . 312 . . 43 71 87 131 . 38 Terrain Rammed . | . . . . . . . . . . . . . . . . . . . . . . . . . . . . Walls Destroyed . | . . . . . . . . . . . . . . . . . . . . . . . . . . . . Machines Disabled . | . . . . . . . . . . . . . . . . . . . . . . . . . . . . Actions | -11 -10 -10 -10 -9 -8 -8 -8 -8 -7 -7 -7 -7 -7 -7 -6 -6 -6 -6 -6 -5 -5 -4 -4 -3 -3 -3 -2 --------- Run | Scr Mat Min Exi Min Mat Gar Mat Gar Fac Was Fac Gar Fac Gar Fac Ext Cet Arc Hub Fac Gar Fac Gar Res Arm Lab Res Total 30806 | 54 941 622 291 315 3051 2210 1507 2095 51 89 487 2030 500 1426 507 1406 298 383 895 458 1999 1493 2378 1316 2883 444 677 Wait 3644 | 2 127 6 6 3 900 343 294 144 . 2 50 141 34 36 38 76 2 25 84 1 63 225 246 305 334 122 35 Move 23181 | 38 730 590 279 294 1909 1563 1084 1613 49 60 381 1606 412 1163 378 1151 174 273 728 433 1626 1037 1931 779 2110 285 505 Hop . | . . . . . . . . . . . . . . . . . . . . . . . . . . . . Pick Up 497 | 4 13 . 4 11 44 58 10 54 . 1 4 51 1 38 7 9 7 6 7 3 59 18 42 19 21 3 3 Fast Attach 234 | 7 . . . . 8 8 10 5 . . 4 14 2 6 4 9 15 6 7 4 7 15 7 22 50 9 15 Attach 220 | . 1 2 . . 17 19 8 8 2 . 3 20 1 11 10 9 . 4 4 2 11 17 11 11 28 5 16 Detach 142 | . . . . . 5 14 5 9 . . 3 10 . 8 4 6 . 4 2 1 9 12 10 9 18 7 6 Swap 471 | . 2 . . 4 13 21 25 24 . 7 11 24 13 20 16 20 14 6 8 5 25 51 23 44 80 1 14 Drop 522 | . 4 . 2 2 33 54 16 58 . . 6 47 3 34 5 7 26 10 11 3 56 18 43 27 38 9 10 Fire 1301 | 3 60 12 . 1 116 89 43 89 . 19 25 69 34 42 45 44 46 49 25 6 56 72 50 81 191 . 34 Melee 180 | . . . . . 1 3 12 31 . . . . . 20 . 5 14 . 3 . . 22 2 17 12 3 35 Ram 4 | . . . . . . . . . . . . . . . . . . . . . . . . . . . 4 Kick . | . . . . . . . . . . . . . . . . . . . . . . . . . . . . Crush 30 | . 4 12 . . 5 . . . . . . . . . . . . . . . . 6 . 2 1 . . Escape Stasis 348 | . . . . . . 38 . 60 . . . 48 . 48 . 40 . . 16 . 86 . 12 . . . . Rewire 32 | . . . . . . . . . . . . . . . . 30 . . . . 1 . 1 . . . . Trap . | . . . . . . . . . . . . . . . . . . . . . . . . . . . . Miscellaneous . | . . . . . . . . . . . . . . . . . . . . . . . . . . . . Route ------- -11/Scrapyard -10/Materials (discovered 5 exits: [*Mat x3] / [*Min x2]) -10/Mines (discovered 3 exits: [*Mat x2] / *Exi) -10/Exiles -9/Mines -8/Materials (discovered 5 exits: *Fac x2 / *Sto x2 / Gar) -8/Garrison (discovered 3 exits: *Mat x3) -8/Materials (discovered 3 exits: *Fac / *Sto / Gar) -8/Garrison (discovered 3 exits: *Fac x3) -7/Factory -7/Waste -7/Factory -7/Garrison (discovered 3 exits: *Fac x3) -7/Factory (discovered 3 exits: Fac / [*Low] / Gar) -7/Garrison (discovered 3 exits: *Fac x3) -6/Factory -6/Extension (discovered 2 exits: *Fac / *Cet) -6/Cetus (discovered 2 exits: *Fac / [*Arc]) -6/Archives (discovered 3 exits: *Fac / *Hub x2) -6/Hub_04(d) (discovered 2 exits: *Fac x2) -5/Factory -5/Garrison (discovered 3 exits: *Fac x3) -4/Factory (discovered 4 exits: Res / *Upp x2 / Gar) -4/Garrison (discovered 3 exits: *Res x3) -3/Research (discovered 3 exits: *Arm / Qua x2) -3/Armory (discovered 2 exits: *Res / *Lab) -3/Lab -2/Research (discovered 2 exits: Tes x2) History --------- Turn | Location | Event 10 | -11/Scrapyard | Discovered new exit (range 15) 83 | -11/Scrapyard | Entered Materials 286 | -10/Materials | Discovered new exit (range 7) 308 | -10/Materials | Build established: Mutant 650 | -10/Materials | Discovered new exit (range 3) 881 | -10/Materials | Discovered new exit (range 16) 959 | -10/Materials | Discovered new exit (range 15) 1479 | -10/Materials | Discovered new exit (range 13) 1492 | -10/Materials | Central database locked down 1567 | -10/Materials | Entered Mines 1588 | -10/Mines | Learned 2 Materials zone layouts 1617 | -10/Mines | Deemed a non-threat by the Exiles lab entrance 1617 | -10/Mines | Discovered new exit (range 5) 2175 | -10/Mines | Discovered new exit (range 14) 2211 | -10/Mines | Received a Mining Laser from a helpful Derelict 2478 | -10/Mines | Discovered new exit (range 14) 2570 | -10/Mines | Entered Exiles 2570 | -10/Exiles | Accompanied by 2 allies 2600 | -10/Exiles | Led the pair of lost Derelicts to a safe place 2615 | -10/Exiles | Met 8R-AWN 2642 | -10/Exiles | Met EX-HEX 2704 | -10/Exiles | Met EX-DEC 2712 | -10/Exiles | Learned location of Zion (-6) 2746 | -10/Exiles | Met EX-BIN 2768 | -10/Exiles | Aligned with FarCom system 2770 | -10/Exiles | Given EX-Vault access code 2815 | -10/Exiles | Opened EX-Vault 2823 | -10/Exiles | Found Cloak of Protection 2827 | -10/Exiles | Found Trap Reconfigurator 2833 | -10/Exiles | Found Gui. Plasma Cannon 2871 | -10/Exiles | Warned to stay clear of 0b10 Research branches 2883 | -10/Exiles | Exiles lab attacked by MAIN.C 3015 | -10/Exiles | Discovered new exit (range 10) 3028 | -10/Exiles | Stole three prototypes: Cloak of Protection, Trap Reconfigurator, Gui. Plasma Cannon 3028 | -10/Exiles | Entered Mines 3054 | -9/Mines | Learned Materials security intel 3091 | -9/Mines | Found a hidden stash of uninstalled traps 3531 | -9/Mines | Met a Derelict shopkeep closing up shop 3629 | -9/Mines | Discovered new exit (range 10) 3687 | -9/Mines | Assembled infested the area 3687 | -9/Mines | Received a Rocket Launcher from a helpful Derelict 3777 | -9/Mines | Entered Materials 3777 | -8/Materials | Evolved 4 slots: Utility x4 3777 | -8/Materials | Discovered new exit (range 15) 3937 | -8/Materials | Discovered new exit (range 11) 4190 | -8/Materials | Build established: Scavenger-Mutant 5043 | -8/Materials | Identified exit to Storage 5974 | -8/Materials | Discovered new exit (range 16) 6911 | -8/Materials | Discovered new exit (range 16) 7910 | -8/Materials | Garrison activated, responded to threat 9508 | -8/Materials | Build established: Hauler-Mutant 10638 | -8/Materials | Identified exit to Garrison 10638 | -8/Materials | Entered Garrison 10797 | -8/Garrison | Spotted B-75 Beast 10836 | -8/Garrison | Destroyed B-75 Beast 10865 | -8/Garrison | Lost 3 parts (1p2u) 10904 | -8/Garrison | Triggered checkpoint 10954 | -8/Garrison | Core integrity fell below 50% 10977 | -8/Garrison | Destroyed 9 combat bots 11021 | -8/Garrison | Lost 4 parts (1p3u) 11023 | -8/Garrison | Build established: Mutant 11050 | -8/Garrison | Discovered new exit (range 10) 11110 | -8/Garrison | Triggered checkpoint 11183 | -8/Garrison | Discovered new exit (range 9) 11242 | -8/Garrison | Triggered checkpoint 11289 | -8/Garrison | Discovered new exit (range 12) 11316 | -8/Garrison | Installed Relay Interface Framework 11910 | -8/Garrison | Build established: Scavenger-Mutant 11962 | -8/Garrison | Triggered checkpoint 11999 | -8/Garrison | Garrison Relay disabled 12420 | -8/Garrison | Build established: Bothacker-Mutant 12500 | -8/Garrison | Triggered checkpoint 12554 | -8/Garrison | Garrison Relay disabled 12920 | -8/Garrison | Triggered checkpoint 13212 | -8/Garrison | Garrison Relay disabled 13518 | -8/Garrison | Triggered checkpoint 13597 | -8/Garrison | Garrison Relay disabled 14166 | -8/Garrison | Build established: Scavenger-Mutant 15135 | -8/Garrison | Build established: Hauler-Mutant 15831 | -8/Garrison | Entered Materials 15831 | -8/Materials | Accompanied by 5 allies 16045 | -8/Materials | Discovered exit to Storage (range 12) 16308 | -8/Materials | Discovered new exit (range 15) 17995 | -8/Materials | Identified exit to Garrison 18735 | -8/Materials | Entered Garrison 19017 | -8/Garrison | Core integrity fell below 20% 19076 | -8/Garrison | Build established: Mutant 19174 | -8/Garrison | Triggered checkpoint 19422 | -8/Garrison | Triggered checkpoint 19779 | -8/Garrison | Discovered new exit (range 8) 19806 | -8/Garrison | Build established: Scavenger-Mutant 19859 | -8/Garrison | Triggered checkpoint 19920 | -8/Garrison | Garrison Relay disabled 20147 | -8/Garrison | Triggered checkpoint 20301 | -8/Garrison | Build established: Bothacker-Mutant 20793 | -8/Garrison | Discovered new exit (range 9) 20833 | -8/Garrison | Expanded RIF knowledge: Structural Interface 20901 | -8/Garrison | Garrison Relay disabled 21765 | -8/Garrison | Triggered checkpoint 21789 | -8/Garrison | Triggered checkpoint 21970 | -8/Garrison | Triggered checkpoint 22028 | -8/Garrison | Garrison Relay disabled 22097 | -8/Garrison | Discovered new exit (range 15) 22767 | -8/Garrison | Build established: Mutant 23426 | -8/Garrison | Entered Factory 23426 | -7/Factory | Accompanied by 1 ally 23426 | -7/Factory | Evolved 2 slots: Weapon x2 23428 | -7/Factory | FarCom data flow suspended 23534 | -7/Factory | Sucked down chute 23534 | -7/Factory | Entered Waste 23549 | -7/Waste | EMP discharged 23550 | -7/Waste | 1 allies followed down the chute 23552 | -7/Waste | Spotted C-40 Crusher 23557 | -7/Waste | Spotted C-40 Crusher 23578 | -7/Waste | Allies destroyed C-40 Crusher 23588 | -7/Waste | Spotted C-40 Crusher 23607 | -7/Waste | Destroyed C-40 Crusher 23609 | -7/Waste | Spotted C-40 Crusher 23630 | -7/Waste | Spotted C-40 Crusher 23649 | -7/Waste | EMP discharged 23649 | -7/Waste | System corruption reached 10% 23660 | -7/Waste | Spotted C-40 Crusher 23708 | -7/Waste | Discovered new exit (range 10) 23730 | -7/Waste | Entered Factory 24713 | -7/Factory | Identified exit to Garrison 24713 | -7/Factory | Entered Garrison 24793 | -7/Garrison | Build established: Bothacker-Gunner 24839 | -7/Garrison | Garrison Relay disabled 24868 | -7/Garrison | Triggered checkpoint 24924 | -7/Garrison | Spotted B-75 Beast 24924 | -7/Garrison | Spotted B-75 Beast 24984 | -7/Garrison | Triggered checkpoint 24999 | -7/Garrison | Garrison Relay disabled 25144 | -7/Garrison | Triggered checkpoint 25466 | -7/Garrison | Triggered checkpoint 25487 | -7/Garrison | Garrison Relay disabled 25657 | -7/Garrison | Discovered new exit (range 10) 25747 | -7/Garrison | Triggered checkpoint 25969 | -7/Garrison | Discovered new exit (range 8) 26066 | -7/Garrison | Triggered checkpoint 26092 | -7/Garrison | Garrison Relay disabled 26204 | -7/Garrison | Triggered checkpoint 26279 | -7/Garrison | Discovered new exit (range 4) 26295 | -7/Garrison | Expanded RIF knowledge: Command Fork 26340 | -7/Garrison | Triggered checkpoint 26366 | -7/Garrison | Garrison Relay disabled 26434 | -7/Garrison | Triggered checkpoint 26542 | -7/Garrison | Assimilated Beast 4a with formatsys_high 26573 | -7/Garrison | Allies destroyed B-75 Beast 26837 | -7/Garrison | Build established: Bothacker-Mutant 28129 | -7/Garrison | Entered Factory 28129 | -7/Factory | Accompanied by 5 allies 28176 | -7/Factory | Build established: Bothacker-Tank 28297 | -7/Factory | Garrison activated, responded to threat 28558 | -7/Factory | Discovered new exit (range 14) 28929 | -7/Factory | First assault squad dispatched 29000 | -7/Factory | Discovered new exit (range 93) 29221 | -7/Factory | Identified exit to Garrison 29252 | -7/Factory | Entered Garrison 29252 | -7/Garrison | Accompanied by 1 ally 29264 | -7/Garrison | Expanded RIF knowledge: Command Fork 29450 | -7/Garrison | Triggered checkpoint 29450 | -7/Garrison | Triggered checkpoint 29484 | -7/Garrison | Destroyed 11 combat bots 29636 | -7/Garrison | Garrison Relay disabled 29838 | -7/Garrison | Triggered checkpoint 29900 | -7/Garrison | Triggered checkpoint 29926 | -7/Garrison | Garrison Relay disabled 29979 | -7/Garrison | Discovered new exit (range 14) 30004 | -7/Garrison | Build established: Bothacker-Mutant 30061 | -7/Garrison | Triggered checkpoint 30118 | -7/Garrison | Garrison Relay disabled 30174 | -7/Garrison | Triggered checkpoint 30344 | -7/Garrison | Triggered checkpoint 30427 | -7/Garrison | Garrison Relay disabled 30454 | -7/Garrison | Build established: Botlord-Mutant 30458 | -7/Garrison | Discovered new exit (range 10) 30608 | -7/Garrison | Discovered new exit (range 9) 31700 | -7/Garrison | Entered Factory 31700 | -6/Factory | Accompanied by 11 allies 31700 | -6/Factory | Evolved 2 slots: Utility x2 31886 | -6/Factory | Build established: Botlord-Tank 32017 | -6/Factory | Fabricated Wave Gun? 32471 | -6/Factory | Build established: Botlord-Mutant 32687 | -6/Factory | Fabricated Arm. Huge Wheel (x2) 32696 | -6/Factory | Cargo convoy interrupted 32740 | -6/Factory | Destroyed 7 combat bots 32767 | -6/Factory | Discovered new exit (range 5) 32776 | -6/Factory | Entered Extension 32972 | -6/Extension | Rescued a captive Derelict 32972 | -6/Extension | Rescued a captive Derelict 33287 | -6/Extension | Build established: Bothacker-Tank 33499 | -6/Extension | Rescued a captive Derelict 33610 | -6/Extension | Rescued a captive Derelict 33610 | -6/Extension | Rescued a captive Derelict 33698 | -6/Extension | Rescued a captive Derelict 33721 | -6/Extension | Rescued a captive Derelict 33721 | -6/Extension | Rescued a captive Derelict 33747 | -6/Extension | Rescued a captive Derelict 33761 | -6/Extension | Rescued a captive Derelict 33762 | -6/Extension | Rescued a captive Derelict 33979 | -6/Extension | Spotted B-75 Beast 33998 | -6/Extension | Allies destroyed B-75 Beast 34006 | -6/Extension | Spotted B-75 Beast 34030 | -6/Extension | Destroyed B-75 Beast 34579 | -6/Extension | Discovered new exit (range 10) 34582 | -6/Extension | Discovered new exit (range 10) 34690 | -6/Extension | Rescued a captive Derelict 34758 | -6/Extension | Rescued A7 34816 | -6/Extension | Rescued a captive Derelict 35085 | -6/Extension | Build established: Bothacker-Mutant 35174 | -6/Extension | Entered Cetus 35174 | -6/Cetus | Accompanied by 8 allies (A7) 35179 | -6/Cetus | Acquired a Cetus Manufacturing Module code from A7 35194 | -6/Cetus | Spotted Cetus Guard 35194 | -6/Cetus | Spotted Cetus Guard 35195 | -6/Cetus | Spotted Cetus Guard 35197 | -6/Cetus | Spotted Cetus Guard 35205 | -6/Cetus | Allies destroyed Cetus Guard 35213 | -6/Cetus | Destroyed Cetus Guard 35217 | -6/Cetus | Destroyed Cetus Guard 35223 | -6/Cetus | Allies destroyed Cetus Guard 35298 | -6/Cetus | Cetus Manufacturing Module disabled 35342 | -6/Cetus | Failed to start Cetus Manufacturing Module 35397 | -6/Cetus | Escorted A7 to Cetus Mainframe 35410 | -6/Cetus | Discovered new exit (range 20) 35451 | -6/Cetus | Spotted Cetus Guard 35451 | -6/Cetus | Spotted Cetus Guard 35453 | -6/Cetus | Spotted Cetus Guard 35456 | -6/Cetus | Allies destroyed Cetus Guard 35457 | -6/Cetus | Spotted Cetus Guard 35461 | -6/Cetus | Destroyed Cetus Guard 35466 | -6/Cetus | Allies destroyed Cetus Guard 35475 | -6/Cetus | Destroyed Cetus Guard 35487 | -6/Cetus | Discovered new exit (range 20) 35503 | -6/Cetus | Met Revision 17 35663 | -6/Cetus | Destroyed A7 35665 | -6/Cetus | Extracted ID and sensor layout for unrecognized location from A7's data core 35673 | -6/Cetus | Found Prototype Protection 35673 | -6/Cetus | Identified Med. Regenerative Plating 35691 | -6/Cetus | Entered Archives 35920 | -6/Archives | Discovered new exit (range 16) 35990 | -6/Archives | Discovered new exit (range 15) 36048 | -6/Archives | Discovered new exit (range 13) 36252 | -6/Archives | Identified exit to Hub_04(d) 36326 | -6/Archives | Entered Hub_04(d) 36326 | -6/Hub_04(d) | Accompanied by 2 allies 36512 | -6/Hub_04(d) | Discovered new exit (range 18) 36572 | -6/Hub_04(d) | Identified exit to Factory 36588 | -6/Hub_04(d) | Build established: Tank 37231 | -6/Hub_04(d) | Discovered exit to Factory (range 11) 37738 | -6/Hub_04(d) | Network Hub disabled 37786 | -6/Hub_04(d) | Spotted Lightning 37790 | -6/Hub_04(d) | Spotted Lightning 37791 | -6/Hub_04(d) | Spotted Lightning 37799 | -6/Hub_04(d) | Network Hub disabled 37832 | -6/Hub_04(d) | Entered Factory 37832 | -5/Factory | Evolved 2 slots: Propulsion x2 37933 | -5/Factory | Repaired Broken Centrium Heavy Treads? 38412 | -5/Factory | Garrison activated, responded to threat 38435 | -5/Factory | Identified exit to Garrison 38435 | -5/Factory | Entered Garrison 38476 | -5/Garrison | Triggered checkpoint 38507 | -5/Garrison | Garrison Relay disabled 38600 | -5/Garrison | Triggered checkpoint 38721 | -5/Garrison | Spotted B-75 Beast 38721 | -5/Garrison | Spotted B-75 Beast 38748 | -5/Garrison | Triggered checkpoint 38762 | -5/Garrison | Triggered checkpoint 38891 | -5/Garrison | Garrison Relay disabled 38964 | -5/Garrison | Garrison Relay disabled 39044 | -5/Garrison | Discovered new exit (range 7) 39116 | -5/Garrison | Triggered checkpoint 39146 | -5/Garrison | Triggered checkpoint 39232 | -5/Garrison | Garrison Relay disabled 39290 | -5/Garrison | Discovered new exit (range 19) 39427 | -5/Garrison | Discovered new exit (range 11) 39452 | -5/Garrison | Expanded RIF knowledge: Robot Detection 39543 | -5/Garrison | Garrison Relay disabled 39685 | -5/Garrison | Triggered checkpoint 39791 | -5/Garrison | Build established: Botlord-Mutant 39971 | -5/Garrison | Assimilated Beast 6a with formatsys_high 40037 | -5/Garrison | Allies destroyed B-75 Beast 41002 | -5/Garrison | Entered Factory 41002 | -4/Factory | Evolved 2 slots: Power x1, Utility x1 41075 | -4/Factory | Spotted B-86 Titan 41220 | -4/Factory | Identified exit to Garrison 41251 | -4/Factory | Identified exit to Upper Caves 41696 | -4/Factory | Build established: Bothacker-Mutant 41751 | -4/Factory | Spotted B-86 Titan 41776 | -4/Factory | Found Prototype Hackware 41800 | -4/Factory | Discovered new exit (range 22) 41905 | -4/Factory | Cargo convoy interrupted 42167 | -4/Factory | Identified Exp. System Shield 42182 | -4/Factory | Fabricated Exp. Hacking Suite? 42325 | -4/Factory | Build established: Hacker-Mutant 42562 | -4/Factory | Found Prototype Processor 42562 | -4/Factory | Identified Exp. Signal Interpreter 43198 | -4/Factory | Fabricated Centrium Heavy Treads (x1) 43241 | -4/Factory | Build established: Hacker-Skirmisher 43314 | -4/Factory | Fabricated Exp. Hacking Suite (x1) 43374 | -4/Factory | Garrison activated, responded to threat 43390 | -4/Factory | Fabricated Exp. Hacking Suite? 43608 | -4/Factory | Entered Garrison 43620 | -4/Garrison | Expanded RIF knowledge: Patrol Navigation 43644 | -4/Garrison | Triggered checkpoint 43675 | -4/Garrison | Build established: Hacker-Tank 43806 | -4/Garrison | Spotted B-86 Titan 43972 | -4/Garrison | Triggered checkpoint 44405 | -4/Garrison | Triggered checkpoint 44512 | -4/Garrison | Triggered checkpoint 44807 | -4/Garrison | Build established: Hacker-Mutant 45554 | -4/Garrison | Triggered checkpoint 45637 | -4/Garrison | Triggered checkpoint 45796 | -4/Garrison | Garrison Relay disabled 45886 | -4/Garrison | Triggered checkpoint 45931 | -4/Garrison | Discovered new exit (range 16) 46098 | -4/Garrison | Build established: Bothacker-Mutant 46318 | -4/Garrison | Triggered checkpoint 46371 | -4/Garrison | Garrison Relay disabled 46426 | -4/Garrison | Discovered new exit (range 18) 46495 | -4/Garrison | Build established: Botlord-Mutant 46670 | -4/Garrison | Discovered new exit (range 5) 46766 | -4/Garrison | Triggered checkpoint 46821 | -4/Garrison | Garrison Relay disabled 48578 | -4/Garrison | Build established: Botlord-Skirmisher 48582 | -4/Garrison | Identified exit to Research 48847 | -4/Garrison | Entered Research 48847 | -3/Research | Accompanied by 7 allies 48847 | -3/Research | Evolved 2 slots: Propulsion x2 48881 | -3/Research | Garrison activated, responded to threat 49057 | -3/Research | Identified exit to Armory 49057 | -3/Research | Identified exit to Quarantine 49536 | -3/Research | Build established: Botlord-Mutant 49543 | -3/Research | Found Prototype Processor 49543 | -3/Research | Identified Exp. Melee Analysis Suite 49549 | -3/Research | Garrison activated, responded to threat 49934 | -3/Research | Repaired Hyp. Mass Driver 49955 | -3/Research | Repaired Hyp. Mass Driver 49993 | -3/Research | Repaired Centrium Heavy Treads 50122 | -3/Research | Central database locked down 50598 | -3/Research | Found Prototype Device 50598 | -3/Research | Identified Beam Splitter 50632 | -3/Research | Fabricated Hyp. Mass Driver (x2) 50681 | -3/Research | Found Beam Splitter 51033 | -3/Research | Entered Armory 51356 | -3/Armory | Build established: Bothacker-Tank 51430 | -3/Armory | Fabricated Hyp. Mass Driver? 52341 | -3/Armory | System corruption reached 10% 52368 | -3/Armory | Lost 4 parts (1u3w) 52567 | -3/Armory | Build established: Hacker-Mutant 52652 | -3/Armory | Fabricated Hcp. Storage Unit? 52944 | -3/Armory | Fabricated Exp. Sensor Array? 53468 | -3/Armory | Repaired Broken Hyp. Railgun 53505 | -3/Armory | Repaired Hyp. Railgun 53548 | -3/Armory | Repaired Cmb. Linear Gravjet 54010 | -3/Armory | Found Enh. Force Lance 54033 | -3/Armory | First assault squad dispatched 54128 | -3/Armory | Lost 3 parts (2u1w) 54242 | -3/Armory | Discovered new exit (range 3) 54364 | -3/Armory | Discovered new exit (range 11) 54377 | -3/Armory | Identified exit to Lab 54377 | -3/Armory | Entered Lab 54377 | -3/Lab | Discovered new exit (range 9) 54380 | -3/Lab | Identified exit to Research 54382 | -3/Lab | Hidden lab's door opened automatically 54382 | -3/Lab | Sensor layout match revealed 54383 | -3/Lab | Gained access to the hidden lab's interior 54456 | -3/Lab | Unable to decrypt terminal 54467 | -3/Lab | Found Alien Artifact 54467 | -3/Lab | Identified Core Regenerator 54467 | -3/Lab | Used Core Regenerator, restored core integrity (+325) 54473 | -3/Lab | Found Alien Artifact 54473 | -3/Lab | Identified Integrated Reactor 54473 | -3/Lab | Installed Integrated Reactor, increased core energy generation (+10) 54488 | -3/Lab | Found Prototype Special Weapon 54488 | -3/Lab | Identified Gui. Remote Datajack 54502 | -3/Lab | Unable to decrypt terminal 54530 | -3/Lab | Found Prototype Hackware 54533 | -3/Lab | Found Prototype Protection 54534 | -3/Lab | Found Prototype Energy Gun 54534 | -3/Lab | Identified Hyp. EM Gauss Rifle 54551 | -3/Lab | Found Hyp. EM Gauss Rifle 54609 | -3/Lab | Found Alien Artifact 54609 | -3/Lab | Identified Transdimensional Reconstructor 54609 | -3/Lab | Warped through subspace 54644 | -3/Lab | Identified Hvy. Regenerative Plating 54653 | -3/Lab | Entered Research 54653 | -2/Research | Evolved 2 slots: Utility x2 54705 | -2/Research | Identified Quantum Router 54711 | -2/Research | Identified exit to Testing 54877 | -2/Research | Spotted B-90 Cyclops 54880 | -2/Research | Assimilated Cyclops 9a with formatsys_high 55013 | -2/Research | Fabricated Rnf. Quantum Reactor? 55109 | -2/Research | System corruption reached 10% 55205 | -2/Research | Core integrity fell below 50% 55223 | -2/Research | Core integrity fell below 20% 55241 | -2/Research | Core destroyed Last Messages --------------- 55227_ U-05 Engineer lays Concrete. 55228_ System corrupted: Substantial component data lost. 55228_ Acquired 17 matter. 55228_ U-05 Engineer lays Concrete. 55229_ U-05 Engineer builds a Wall. 55230_ U-05 Engineer lays Concrete. 55233_ U-05 Engineer builds a Wall. 55233_ U-05 Engineer lays Concrete. 55234_ Slammed into G-73 Enforcer. 55234_ U-05 Engineer destroyed. 55235_ U-05 Engineer lays Concrete. 55237_ ALERT: Security rotation in progress. 55237_ U-05 Engineer lays Concrete. 55237_ U-05 Engineer builds a Wall. 55237_ Critical hit (Burn: +37). 55238_ U-05 Engineer lays Concrete. 55239_ U-05 Engineer builds a Door. 55240_ Slug penetrates Wall. 55241_ Slammed into G-73 Enforcer. 55241_ Destabilizing: Core damaged (-58). Map ----- +----------------------------------------------------+ | ?????????????????????????????????????????????????? | | ?????????????????????????????????????????????????? | | ?????????????????????????????????????????????????? | | ?????????????????????????????????????????????????? | | ?????????????????????????????????????????????????? | | ?????????????????????????????????????????????????? | | ?????????????????????????????????????????????????? | | ?????????????????????????????????????????????????? | | ?????????????????????????????????????????????????? | | ?????????????????????????????????????????????????? | | ?????????????????????????????????????????????????? | | ?????????????????????????#######?????????????????? | | ?????????????????????????# ?????????????????? | | ?????????????????????????# ??????????????????? | | ?????????????????????????# ??????????????????? | | ?????????????????????????# ??????????????????? | | ?????????????????????????# #??????????????????? | | ?????????????????????????# #??????????????????? | | ?????????????????????????# #??????????????????? | | ?????????????????????????+ #???###????????????? | | ?????????????????????????# #???# #????????????? | | ?????????????????????##### u##########?????????? | | ?????????????????????? # #?????????? | | ??????????????????????####h #?????????? | | ??????????????????????# g#%* ! ""^ #?????????? | | ??????????????????????# @! % *""" #?????????? | | ??????????????????????## % + *F" #?????????? | | ??????????????????????# ==* u ^ "" ##????????? | | ???????????????? # # # "" ##????????? | | ???????????? # # g u# ^ ^ ##????????? | | ????????????? # # # =#?????????? | | ????????????? ?# # ##########?????????? | | ?????????????? ???# # %! #?????????? | | ??#??????????? ?????#### + [ #?????????? | | ? #??????????????????????# # #?????????? | | #??????????????????????# #! """ #?????????? | | #??????????????????????# #% """ #?????????? | | #??????????????????????# #|= """ #?????????? | | #????????????????????### t # #?????????? | | ########?????????????#"" # % #?????????? | | #?????????????#"T # [ #?????????? | | #?????????????### #######/##?????????? | | #???????????????# # %!#?????????? | | +???????????????# # #?????????? | | #+### #???????????????# # #?????????? | | ## #???????????????# # [ #?????????? | | ## ################# # ! #?????????? | | ## + = #?????????? | | ## # = #?????????? | | ## #! = #?????????? | +----------------------------------------------------+ Best States ------------- Heat Dissipation 108 Coolant Potential 100 Energy Generation 49 Energy Capacity 575 Matter Stores 300 Matter Capacity 300 Sight Range 22 Robot Scan Range 20 Terrain Scan Range 14 Terrain Scan Density 210 Jamming Range 16 Cloak Strength 5 Armor Coverage 900 Resistance: TH 75 Resistance: EX 50 Resistance: EM 20 Utility Shielding 66 Weapon Cycling 25 Evasion (%) 57 Targeting Accuracy 8 Target Analysis 6 Recoil Reduction 12 Energy Filtering 50 Particle Charging 30 Offensive Hacking 48 Defensive Hacking 25 Relay Coupler Types 4 Relay Coupler Value 71 Authchip Count 2 Item Schematics ----------------- Arm. Huge Wheel | -8/Materials | Scanalyzed Adv. Hacking Suite | -4/Factory | Hacked Adv. System Shield | -4/Factory | Hacked Centrium Heavy Treads | -4/Factory | Scanalyzed Hyp. Mass Driver | -4/Factory | Scanalyzed Adv. Force Booster | -4/Factory | Hacked Exp. Hacking Suite | -4/Factory | Hacked Biometal Heavy Treads | -3/Research | Hacked Exp. Utility Shielding | -3/Research | Hacked Rnf. Quantum Reactor | -3/Research | Hacked Imp. Heavy Siege Treads | -3/Research | Hacked Imp. Q-thruster | -3/Research | Hacked Hcp. Storage Unit | -3/Armory | Hacked Exp. Sensor Array | -3/Armory | Hacked Robot Schematics ------------------ None Fabricated ------------ Wave Gun | x2 | -6/Factory | Preloaded Arm. Huge Wheel | x2 | -6/Factory Exp. Hacking Suite | x1 | -4/Factory Centrium Heavy Treads | x1 | -4/Factory | Authchip Exp. Hacking Suite | x1 | -4/Factory | Authchip Exp. Hacking Suite | x1 | -4/Factory Hyp. Mass Driver | x2 | -3/Research Hyp. Mass Driver | x2 | -3/Armory Hcp. Storage Unit | x1 | -3/Armory Exp. Sensor Array | x1 | -3/Armory Rnf. Quantum Reactor | x2 | -2/Research Alien Tech Used ----------------- Core Regenerator Integrated Reactor Transdimensional Reconstructor Achievements -------------- None Challenges ------------ None Game ------ Seed MeleeHoverTorch Manual? 0 Play Time 10:08:00 Cumulative 519.1 hours Start 2022.07.05 @ 23:40:13 End 2022.07.13 @ 02:30:35 Sessions 15 Manual Loads 0 Difficulty Rogue Special Mode None Game No. 43 Rogue 38 Adventurer 5 Explorer 0 Win Type - Total 21 Types 6/4/4/0/3/1/2/0/1 Lore% 82 Gallery% 91 Achievement% 81 Wizard Run 0 Options --------- ASCII 0 Keyboard 1 Movement Numpad Keybinds 0 Fullscreen 1 Font 18/SmallcapsGlow Map View 76x50 Tactical HUD 1 Map Filters NONE Filters NONE Steam 1 RUN: 461985f1-e491-41da-9220-da723adfc74c